fUST/lending_fUST_20240824
["ID","MTS","AMOUNT","RATE_DAILY","PERIOD"]
[335753667,1724477458330,-283.342936,0.00013972,2]
[335753668,1724477458340,-283.342936,0.00013972,2]
[335753669,1724477458349,-2008.54,0.00013972,2]
[335753670,1724477458359,-678.32,0.00013972,2]
[335753671,1724477458368,-624.471833,0.00013972,2]
[335753672,1724477458378,-624.471833,0.00013972,2]
[335753673,1724477458387,-285.982218,0.00013972,2]
[335753674,1724477458397,-624.471833,0.00013972,2]
[335753675,1724477458406,-827.04,0.00013972,2]
[335753676,1724477458415,-624.471833,0.00013972,2]
[335753677,1724477458424,-624.471833,0.00013972,2]
[335753678,1724477458433,-398.55180847,0.00013972,2]
[335753679,1724477458442,-624.471833,0.00013972,2]
[335753680,1724477458452,-500.0,0.00013972,2]
[335753681,1724477458462,-500.0,0.00013972,2]
[335753682,1724477458471,-590.28,0.00013972,2]
[335753683,1724477458481,-500.0,0.00013972,2]
[335753684,1724477458490,-151.0,0.00013972,2]
[335753685,1724477458499,-151.0,0.00013972,2]
[335753686,1724477458509,-151.0,0.00013972,2]
[335753687,1724477458519,-12403.74,0.00013972,2]
[335753688,1724477458531,-500.0,0.00013972,2]
[335753689,1724477458542,-3858.99,0.00013972,2]
[335753690,1724477458552,-500.0,0.00013972,2]
[335753691,1724477458563,-500.0,0.00013972,2]
[335753692,1724477458572,-500.0,0.00013972,2]
[335753693,1724477458581,-500.0,0.00013972,2]
[335753694,1724477458590,-1893.4,0.00013972,2]
[335753695,1724477458599,-500.0,0.00013972,2]
[335753696,1724477458609,-151.0,0.00013972,2]
[335753697,1724477458618,-151.0,0.00013972,2]
[335753698,1724477458627,-151.0,0.00013972,2]
[335753699,1724477458637,-500.0,0.00013972,2]
[335753700,1724477458645,-1017.25,0.00013972,2]
[335753701,1724477458655,-2101.35,0.00013972,2]
[335753702,1724477458666,-441.575592,0.00013972,2]
[335753703,1724477458675,-441.575592,0.00013972,2]
[335753704,1724477458684,-771.07,0.00013972,2]
[335753705,1724477458694,-441.575592,0.00013972,2]
[335753706,1724477458705,-441.575592,0.00013972,2]
[335753707,1724477458715,-1339.66,0.00013972,2]
[335753708,1724477458727,-2501.69,0.00013972,2]
[335753709,1724477458738,-500.0,0.00013972,2]
[335753710,1724477458748,-5556.15,0.00013972,2]
[335753711,1724477458759,-575.98,0.00013972,2]
[335753712,1724477458768,-2269.56,0.00013972,2]
[335753713,1724477458779,-665.39,0.00013972,2]
[335753714,1724477458790,-814.33,0.00013972,2]
[335753715,1724477458799,-500.0,0.00013972,2]
[335753716,1724477458809,-690.87,0.00013972,2]
[335753717,1724477458821,-500.0,0.00013972,2]
[335753718,1724477458830,-285.92282374,0.00013972,2]
[335753719,1724477458841,-6584.37,0.00013972,2]
[335753720,1724477458852,-500.0,0.00013972,2]
[335753721,1724477458865,-298.95432508,0.00013972,2]
[335753722,1724477458874,-500.0,0.00013972,2]
[335753723,1724477458884,-2927.00930561,0.00013972,2]
[335753724,1724477458916,-820.83069439,0.00013972,2]
[335753725,1724477458926,-500.0,0.00013972,2]
[335753726,1724477458935,-500.0,0.00013972,2]
[335753727,1724477458944,-864.89,0.00013972,2]
[335753728,1724477458954,-500.0,0.00013972,2]
[335753729,1724477458963,-1477.34637944,0.00013972,2]
[335753731,1724477459351,406.03,0.00010959,2]
[335753732,1724477459561,-409.212231,0.00013538,2]
[335753733,1724477459570,-500.0,0.00013698,2]
[335753734,1724477459579,-500.0,0.00013698,2]
[335753735,1724477459590,-153.0,0.00013771,2]
[335753736,1724477459600,-153.0,0.00013771,2]
[335753737,1724477459612,-153.0,0.00013771,2]
[335753738,1724477459622,-153.0,0.00013771,2]
[335753739,1724477459632,-20.74595751,0.00013771,2]
[335753740,1724477461474,338.36,0.00010959,2]
[335753742,1724477476586,281.96,0.00010959,2]
[335753744,1724477487198,234.97,0.00010959,2]
[335753745,1724477497915,195.81,0.00010959,2]
[335753747,1724477508398,163.17,0.00010959,2]
[335753748,1724477518918,815.9,0.00010959,2]
[335753773,1724477773266,2454.3460839,0.00027,120]
[335753780,1724477977867,5000.0,0.0001211,2]
[335753787,1724478119178,160.0,0.00015423,33]
[335753788,1724478119927,160.0,0.00015402,32]
[335753789,1724478120002,160.0,0.00015382,31]
[335753790,1724478120271,160.0,0.00015361,30]
[335753794,1724478196103,24890.0,0.00011652,2]
[335753799,1724478281632,176.92168687,0.00011652,2]
[335753801,1724478341494,160.244451,0.00012095,2]
[335753803,1724478374862,1850.58035834,0.00011999,3]
[335754057,1724478439143,-160.244451,0.00012147,2]
[335754058,1724478439166,-160.244451,0.000122,2]
[335754059,1724478439188,-160.244451,0.00012252,2]
[335754060,1724478439211,-160.244451,0.00012305,2]
[335754061,1724478439232,-535.11790599,0.00012356,2]
[335754062,1724478439254,-160.244451,0.00012357,2]
[335754063,1724478439279,-160.244451,0.0001241,2]
[335754064,1724478439304,-160.244451,0.00012462,2]
[335754065,1724478439327,-160.244451,0.00012515,2]
[335754066,1724478439348,-440.49656002,0.00012516,2]
[335754067,1724478439371,-160.244451,0.00012567,2]
[335754068,1724478439393,-160.244451,0.0001262,2]
[335754069,1724478439414,-160.244451,0.00012672,2]
[335754070,1724478439437,-160.244451,0.00012725,2]
[335754071,1724478439459,-154.71377951,0.00012898,2]
[335754072,1724478439479,-665.66397173,0.00012989,2]
[335754073,1724478439502,-409.212231,0.00013178,2]
[335754074,1724478439522,-409.212231,0.00013178,2]
[335754075,1724478439542,-207.6241733,0.0001333,2]
[335754076,1724478439566,-1471.63953251,0.0001358,2]
[335754116,1724478492300,160.06595837,0.00011999,2]
[335754348,1724478632543,-208.24697657,0.00013496,2]
[335754350,1724478632554,-215.31946209,0.00013496,2]
[335754352,1724478632564,-528.36046749,0.0001358,2]
[335754354,1724478632574,-1112.71985128,0.00013598,2]
[335754356,1724478632584,-187.99795715,0.00013598,2]
[335754358,1724478632595,-300.0,0.00013599,2]
[335754360,1724478632605,-242.0,0.00013599,2]
[335754362,1724478632614,-2000.0,0.000136,2]
[335754364,1724478632624,-150.112233,0.000136,2]
[335754366,1724478632635,-500.0,0.00013698,2]
[335754368,1724478632645,-500.0,0.00013698,2]
[335754370,1724478632656,-500.0,0.00013698,2]
[335754372,1724478632665,-500.0,0.00013698,2]
[335754374,1724478632675,-500.0,0.00013698,2]
[335754376,1724478632684,-500.0,0.00013698,2]
[335754378,1724478632694,-529.54190491,0.00013698,2]
[335754380,1724478632704,-500.0,0.00013698,2]
[335754383,1724478632715,-500.0,0.00013698,2]
[335754385,1724478632725,-500.0,0.00013698,2]
[335754387,1724478632735,-500.0,0.00013698,2]
[335754389,1724478632744,-500.0,0.00013698,2]
[335754391,1724478632754,-500.0,0.00013698,2]
[335754393,1724478632764,-500.0,0.00013698,2]
[335754395,1724478632773,-500.0,0.00013698,2]
[335754397,1724478632783,-500.0,0.00013698,2]
[335754399,1724478632793,-500.0,0.00013698,2]
[335754401,1724478632803,-500.0,0.00013698,2]
[335754403,1724478632813,-500.0,0.00013698,2]
[335754405,1724478632823,-500.0,0.00013698,2]
[335754407,1724478632833,-500.0,0.00013698,2]
[335754409,1724478632846,-500.0,0.00013698,2]
[335754411,1724478632856,-500.0,0.00013698,2]
[335754413,1724478632866,-500.0,0.00013698,2]
[335754415,1724478632875,-500.0,0.00013698,2]
[335754417,1724478632887,-531.57,0.00013698,2]
[335754419,1724478632897,-500.0,0.00013698,2]
[335754421,1724478632907,-500.0,0.00013698,2]
[335754423,1724478632917,-621.59339637,0.00013698,2]
[335754425,1724478632929,-531.65,0.00013698,2]
[335754427,1724478632940,-500.0,0.00013698,2]
[335754429,1724478632951,-153.96001287,0.00013698,2]
[335754431,1724478632961,-500.0,0.00013698,2]
[335754433,1724478632971,-340.7318426,0.00013698,2]
[335754435,1724478632981,-500.0,0.00013698,2]
[335754437,1724478632991,-500.0,0.00013698,2]
[335754439,1724478633001,-500.0,0.00013698,2]
[335754441,1724478633012,-566.65724352,0.00013698,2]
[335754443,1724478633023,-500.0,0.00013698,2]
[335754446,1724478633033,-500.0,0.00013698,2]
[335754447,1724478633043,-500.0,0.00013698,2]
[335754450,1724478633053,-404.42071352,0.00013698,2]
[335754549,1724478638624,-95.57928648,0.00013698,2]
[335754550,1724478638635,-500.0,0.00013698,2]
[335754551,1724478638644,-500.0,0.00013698,2]
[335754552,1724478638653,-500.0,0.00013698,2]
[335754553,1724478638663,-500.0,0.00013698,2]
[335754554,1724478638672,-500.0,0.00013698,2]
[335754555,1724478638682,-195.58363887,0.00013698,2]
[335754566,1724478638751,-325.37483793,0.00013698,2]
[335754568,1724478638761,-500.0,0.00013698,2]
[335754570,1724478638770,-500.0,0.00013698,2]
[335754572,1724478638780,-1906.45,0.00013698,2]
[335754574,1724478638790,-500.0,0.00013698,2]
[335754576,1724478638799,-627.53827637,0.00013698,2]
[335754578,1724478638809,-500.0,0.00013698,2]
[335754580,1724478638818,-500.0,0.00013698,2]
[335754582,1724478638828,-500.0,0.00013698,2]
[335754584,1724478638837,-500.0,0.00013698,2]
[335754586,1724478638847,-492.16423239,0.00013698,2]
[335754588,1724478638857,-500.0,0.00013698,2]
[335754590,1724478638868,-500.0,0.00013698,2]
[335754592,1724478638877,-500.0,0.00013698,2]
[335754595,1724478638887,-500.0,0.00013698,2]
[335754597,1724478638896,-500.0,0.00013698,2]
[335754599,1724478638906,-565.86,0.00013698,2]
[335754601,1724478638916,-500.0,0.00013698,2]
[335754603,1724478638925,-500.0,0.00013698,2]
[335754605,1724478638935,-1321.26,0.00013698,2]
[335754607,1724478638946,-600.0,0.00013698,2]
[335754609,1724478638956,-500.0,0.00013698,2]
[335754611,1724478638965,-500.0,0.00013698,2]
[335754613,1724478638976,-475.57235284,0.00013698,2]
[335754615,1724478638989,-24.42764716,0.00013698,2]
[335754617,1724478639000,-500.0,0.00013698,2]
[335754618,1724478639011,-500.0,0.00013698,2]
[335754620,1724478639023,-500.0,0.00013698,2]
[335754621,1724478639034,-500.0,0.00013698,2]
[335754622,1724478639044,-1097.04,0.00013698,2]
[335754623,1724478639055,-500.0,0.00013698,2]
[335754624,1724478639066,-684.8,0.00013698,2]
[335754626,1724478639076,-500.0,0.00013698,2]
[335754627,1724478639087,-500.0,0.00013698,2]
[335754629,1724478639098,-500.0,0.00013698,2]
[335754630,1724478639109,-500.0,0.00013698,2]
[335754631,1724478639120,-1497.92,0.00013698,2]
[335754632,1724478639133,-503.1174782,0.00013698,2]
[335754633,1724478639143,-500.0,0.00013698,2]
[335754634,1724478639154,-500.0,0.00013698,2]
[335754635,1724478639164,-500.0,0.00013698,2]
[335754636,1724478639174,-500.0,0.00013698,2]
[335754638,1724478639184,-500.0,0.00013698,2]
[335754639,1724478639194,-500.0,0.00013698,2]
[335754640,1724478639204,-500.0,0.00013698,2]
[335754641,1724478639215,-500.0,0.00013698,2]
[335754642,1724478639225,-500.0,0.00013698,2]
[335754643,1724478639234,-500.0,0.00013698,2]
[335754644,1724478639245,-500.0,0.00013698,2]
[335754645,1724478639254,-500.0,0.00013698,2]
[335754646,1724478639264,-500.0,0.00013698,2]
[335754647,1724478639274,-1248.94,0.00013698,2]
[335754648,1724478639283,-500.0,0.00013698,2]
[335754649,1724478639293,-500.0,0.00013698,2]
[335754650,1724478639302,-500.0,0.00013698,2]
[335754651,1724478639312,-500.0,0.00013698,2]
[335754652,1724478639321,-500.0,0.00013698,2]
[335754653,1724478639331,-631.39,0.00013698,2]
[335754654,1724478639340,-500.0,0.00013698,2]
[335754655,1724478639349,-500.0,0.00013698,2]
[335754656,1724478639359,-1133.54,0.00013698,2]
[335754657,1724478639369,-500.0,0.00013698,2]
[335754658,1724478639379,-500.0,0.00013698,2]
[335754659,1724478639388,-741.47,0.00013698,2]
[335754660,1724478639398,-500.0,0.00013698,2]
[335754661,1724478639408,-500.0,0.00013698,2]
[335754662,1724478639417,-500.0,0.00013698,2]
[335754663,1724478639427,-500.0,0.00013698,2]
[335754664,1724478639436,-1225.26,0.00013698,2]
[335754666,1724478639446,-500.0,0.00013698,2]
[335754667,1724478639455,-500.0,0.00013698,2]
[335754668,1724478639464,-411.68077222,0.00013698,2]
[335754669,1724478639474,-500.0,0.00013698,2]
[335754670,1724478639484,-500.0,0.00013698,2]
[335754671,1724478639494,-500.0,0.00013698,2]
[335754672,1724478639503,-500.0,0.00013698,2]
[335754673,1724478639513,-500.0,0.00013698,2]
[335754674,1724478639522,-500.0,0.00013698,2]
[335754675,1724478639532,-526.08,0.00013698,2]
[335754676,1724478639542,-501.07,0.00013698,2]
[335754677,1724478639551,-500.0,0.00013698,2]
[335754678,1724478639561,-500.0,0.00013698,2]
[335754679,1724478639571,-500.0,0.00013698,2]
[335754680,1724478639581,-1087.16,0.00013698,2]
[335754681,1724478639591,-983.16,0.00013698,2]
[335754682,1724478639601,-637.85,0.00013698,2]
[335754683,1724478639610,-924.47,0.00013698,2]
[335754684,1724478639620,-621.8,0.00013698,2]
[335754685,1724478639630,-500.0,0.00013698,2]
[335754686,1724478639640,-723.38,0.00013698,2]
[335754687,1724478639649,-500.0,0.00013698,2]
[335754688,1724478639659,-500.0,0.00013698,2]
[335754689,1724478639669,-500.0,0.00013698,2]
[335754690,1724478639678,-742.27,0.00013698,2]
[335754691,1724478639688,-2012.89,0.00013698,2]
[335754694,1724478639917,-546.17,0.00013698,2]
[335754695,1724478639930,-972.37,0.00013698,2]
[335754696,1724478639940,-1023.72,0.00013698,2]
[335754697,1724478639950,-500.0,0.00013698,2]
[335754698,1724478639960,-782.21,0.00013698,2]
[335754699,1724478639970,-500.0,0.00013698,2]
[335754700,1724478639979,-527.98,0.00013698,2]
[335754701,1724478639989,-500.0,0.00013698,2]
[335754702,1724478639999,-500.0,0.00013698,2]
[335754703,1724478640009,-1121.39,0.00013698,2]
[335754704,1724478640018,-792.81,0.00013698,2]
[335754705,1724478640028,-500.0,0.00013698,2]
[335754706,1724478640038,-2705.06,0.00013698,2]
[335754707,1724478640048,-500.0,0.00013698,2]
[335754708,1724478640057,-625.77,0.00013698,2]
[335754709,1724478640067,-938.89,0.00013698,2]
[335754710,1724478640076,-500.0,0.00013698,2]
[335754711,1724478640087,-2879.67,0.00013698,2]
[335754713,1724478640097,-500.0,0.00013698,2]
[335754714,1724478640106,-500.0,0.00013698,2]
[335754715,1724478640115,-500.0,0.00013698,2]
[335754716,1724478640125,-500.0,0.00013698,2]
[335754717,1724478640135,-500.0,0.00013698,2]
[335754718,1724478640145,-500.0,0.00013698,2]
[335754719,1724478640154,-500.0,0.00013698,2]
[335754720,1724478640164,-306.42042976,0.00013698,2]
[335754722,1724478640174,-500.0,0.00013698,2]
[335754723,1724478640183,-285.92282374,0.00013698,2]
[335754724,1724478640194,-557.48915193,0.00013698,2]
[335754725,1724478640210,-411.2278529,0.00013698,2]
[335754726,1724478640220,-839.41,0.00013698,2]
[335754727,1724478640229,-556.07,0.00013698,2]
[335754728,1724478640239,-724.91,0.00013698,2]
[335754729,1724478640249,-500.0,0.00013698,2]
[335754730,1724478640259,-286.58702457,0.00013698,2]
[335754731,1724478640268,-728.51,0.00013698,2]
[335754732,1724478640278,-1296.71,0.00013698,2]
[335754733,1724478640288,-500.0,0.00013698,2]
[335754734,1724478640297,-226.45830538,0.00013698,2]
[335754735,1724478640307,-566.74,0.00013698,2]
[335754736,1724478640316,-1220.46,0.00013698,2]
[335754737,1724478640326,-500.0,0.00013698,2]
[335754738,1724478640335,-850.25,0.00013698,2]
[335754740,1724478640344,-500.0,0.00013698,2]
[335754741,1724478640354,-500.0,0.00013698,2]
[335754743,1724478640365,-520.07,0.00013698,2]
[335754745,1724478640374,-509.62,0.00013698,2]
[335754746,1724478640384,-500.0,0.00013698,2]
[335754748,1724478640394,-703.7,0.00013698,2]
[335754749,1724478640403,-500.0,0.00013698,2]
[335754750,1724478640413,-500.0,0.00013698,2]
[335754751,1724478640422,-684.23,0.00013698,2]
[335754752,1724478640431,-500.0,0.00013698,2]
[335754753,1724478640442,-878.06,0.00013698,2]
[335754754,1724478640451,-500.0,0.00013698,2]
[335754755,1724478640460,-500.0,0.00013698,2]
[335754756,1724478640469,-500.0,0.00013698,2]
[335754757,1724478640479,-563.62,0.00013698,2]
[335754758,1724478640489,-500.0,0.00013698,2]
[335754759,1724478640498,-557.72,0.00013698,2]
[335754760,1724478640508,-2752.5,0.00013698,2]
[335754761,1724478640517,-500.0,0.00013698,2]
[335754762,1724478640526,-500.0,0.00013698,2]
[335754763,1724478640536,-1248.38,0.00013698,2]
[335754765,1724478640545,-1339.76,0.00013698,2]
[335754766,1724478640555,-667.69,0.00013698,2]
[335754767,1724478640565,-500.0,0.00013698,2]
[335754768,1724478640575,-614.85,0.00013698,2]
[335754769,1724478640584,-1581.72,0.00013698,2]
[335754770,1724478640594,-500.0,0.00013698,2]
[335754771,1724478640603,-651.59,0.00013698,2]
[335754772,1724478640613,-500.0,0.00013698,2]
[335754774,1724478640622,-500.0,0.00013698,2]
[335754775,1724478640631,-500.0,0.00013698,2]
[335754776,1724478640640,-1821.62,0.00013698,2]
[335754777,1724478640649,-500.0,0.00013698,2]
[335754779,1724478640660,-500.0,0.00013698,2]
[335754780,1724478640671,-1919.92,0.00013698,2]
[335754781,1724478640683,-1273.96,0.00013698,2]
[335754782,1724478640697,-2187.57,0.00013698,2]
[335754783,1724478640707,-500.0,0.00013698,2]
[335754785,1724478640716,-500.0,0.00013698,2]
[335754787,1724478640726,-500.0,0.00013698,2]
[335754789,1724478640735,-1102.31,0.00013698,2]
[335754791,1724478640745,-500.0,0.00013698,2]
[335754793,1724478640755,-884.35,0.00013698,2]
[335754795,1724478640766,-500.0,0.00013698,2]
[335754797,1724478640776,-500.0,0.00013698,2]
[335754799,1724478640786,-961.73,0.00013698,2]
[335754801,1724478640795,-500.0,0.00013698,2]
[335754804,1724478640805,-682.7,0.00013698,2]
[335754806,1724478640815,-500.0,0.00013698,2]
[335754808,1724478640826,-1187.93,0.00013698,2]
[335754810,1724478640835,-500.0,0.00013698,2]
[335754812,1724478640845,-409.3967305,0.00013698,2]
[335754814,1724478640857,-979.4,0.00013698,2]
[335754816,1724478640872,-1412.56,0.00013698,2]
[335754818,1724478640882,-500.0,0.00013698,2]
[335754820,1724478640892,-829.9,0.00013698,2]
[335754822,1724478640903,-416.90936469,0.00013698,2]
[335754824,1724478640913,-500.0,0.00013698,2]
[335754826,1724478640922,-500.0,0.00013698,2]
[335754828,1724478640931,-500.0,0.00013698,2]
[335754831,1724478640941,-500.56863178,0.00013698,2]
[335754834,1724478640952,-654.26,0.00013698,2]
[335754836,1724478640961,-500.0,0.00013698,2]
[335754838,1724478640971,-500.0,0.00013698,2]
[335754840,1724478640981,-500.0,0.00013698,2]
[335754842,1724478640991,-1400.19,0.00013698,2]
[335754844,1724478641001,-590.4,0.00013698,2]
[335754846,1724478641012,-500.0,0.00013698,2]
[335754848,1724478641023,-500.0,0.00013698,2]
[335754851,1724478641034,-500.0,0.00013698,2]
[335754853,1724478641046,-1551.11,0.00013698,2]
[335754855,1724478641056,-867.0,0.00013698,2]
[335754857,1724478641065,-811.22,0.00013698,2]
[335754859,1724478641074,-500.0,0.00013698,2]
[335754861,1724478641084,-500.0,0.00013698,2]
[335754863,1724478641094,-500.0,0.00013698,2]
[335754865,1724478641103,-500.0,0.00013698,2]
[335754867,1724478641115,-1166.63,0.00013698,2]
[335754869,1724478641126,-500.0,0.00013698,2]
[335754872,1724478641137,-500.0,0.00013698,2]
[335754874,1724478641147,-500.0,0.00013698,2]
[335754876,1724478641159,-510.53305999,0.00013698,2]
[335754878,1724478641169,-842.19,0.00013698,2]
[335754880,1724478641179,-500.0,0.00013698,2]
[335754882,1724478641189,-1528.2,0.00013698,2]
[335754884,1724478641200,-500.0,0.00013698,2]
[335754886,1724478641210,-500.0,0.00013698,2]
[335754888,1724478641220,-1038.51,0.00013698,2]
[335754890,1724478641230,-563.79847369,0.00013698,2]
[335754892,1724478641239,-500.0,0.00013698,2]
[335754894,1724478641249,-500.0,0.00013698,2]
[335754896,1724478641259,-500.0,0.00013698,2]
[335754898,1724478641268,-500.0,0.00013698,2]
[335754900,1724478641277,-500.0,0.00013698,2]
[335754902,1724478641287,-647.74,0.00013698,2]
[335754904,1724478641296,-704.81,0.00013698,2]
[335754906,1724478641305,-500.0,0.00013698,2]
[335754908,1724478641315,-500.0,0.00013698,2]
[335754910,1724478641324,-500.0,0.00013698,2]
[335754912,1724478641333,-500.0,0.00013698,2]
[335754914,1724478641343,-500.0,0.00013698,2]
[335754916,1724478641353,-957.98,0.00013698,2]
[335754918,1724478641362,-500.0,0.00013698,2]
[335754920,1724478641371,-500.0,0.00013698,2]
[335754922,1724478641380,-1889.32,0.00013698,2]
[335754924,1724478641390,-479.68623203,0.00013698,2]
[335754926,1724478641399,-500.61120877,0.00013698,2]
[335754928,1724478641408,-519.05476155,0.00013698,2]
[335754930,1724478641418,-790.14,0.00013698,2]
[335754932,1724478641427,-710.2,0.00013698,2]
[335754934,1724478641437,-598.85,0.00013698,2]
[335754936,1724478641447,-500.0,0.00013698,2]
[335754938,1724478641456,-500.0,0.00013698,2]
[335754940,1724478641466,-745.73,0.00013698,2]
[335754942,1724478641476,-551.53866785,0.00013698,2]
[335754944,1724478641485,-500.0,0.00013698,2]
[335754946,1724478641495,-500.0,0.00013698,2]
[335754948,1724478641504,-500.0,0.00013698,2]
[335754950,1724478641514,-1171.79,0.00013698,2]
[335754952,1724478641524,-510.28937839,0.00013698,2]
[335754954,1724478641534,-1617.77,0.00013698,2]
[335754956,1724478641543,-857.36,0.00013698,2]
[335754958,1724478641553,-500.0,0.00013698,2]
[335754961,1724478641563,-500.0,0.00013698,2]
[335754962,1724478641572,-500.0,0.00013698,2]
[335754965,1724478641582,-500.0,0.00013698,2]
[335754967,1724478641593,-504.75790496,0.00013698,2]
[335754969,1724478641603,-701.67,0.00013698,2]
[335754971,1724478641613,-500.0,0.00013698,2]
[335754973,1724478641623,-500.0,0.00013698,2]
[335754975,1724478641633,-1428.6,0.00013698,2]
[335754977,1724478641643,-500.0,0.00013698,2]
[335754979,1724478641653,-500.0,0.00013698,2]
[335754981,1724478641662,-500.0,0.00013698,2]
[335754983,1724478641672,-567.1,0.00013698,2]
[335754985,1724478641681,-500.0,0.00013698,2]
[335754987,1724478641691,-500.0,0.00013698,2]
[335754989,1724478641700,-500.0,0.00013698,2]
[335754991,1724478641710,-500.0,0.00013698,2]
[335754993,1724478641718,-690.15,0.00013698,2]
[335754995,1724478641727,-388.68899463,0.00013698,2]
[335754997,1724478641737,-501.74827998,0.00013698,2]
[335754999,1724478641746,-963.21,0.00013698,2]
[335755001,1724478641756,-500.0,0.00013698,2]
[335755002,1724478641766,-884.71,0.00013698,2]
[335755003,1724478641776,-608.78,0.00013698,2]
[335755004,1724478641785,-500.0,0.00013698,2]
[335755006,1724478641794,-555.3,0.00013698,2]
[335755007,1724478641803,-506.45,0.00013698,2]
[335755008,1724478641813,-1574.28,0.00013698,2]
[335755009,1724478641823,-964.52,0.00013698,2]
[335755010,1724478641834,-500.0,0.00013698,2]
[335755011,1724478641843,-500.0,0.00013698,2]
[335755012,1724478641854,-500.0,0.00013698,2]
[335755013,1724478641868,-953.55,0.00013698,2]
[335755014,1724478641878,-500.0,0.00013698,2]
[335755015,1724478641887,-539.15,0.00013698,2]
[335755016,1724478641896,-1841.16,0.00013698,2]
[335755017,1724478641907,-608.48,0.00013698,2]
[335755018,1724478641917,-500.0,0.00013698,2]
[335755019,1724478641926,-500.0,0.00013698,2]
[335755020,1724478641937,-500.0,0.00013698,2]
[335755021,1724478641948,-500.0,0.00013698,2]
[335755022,1724478641959,-554.91,0.00013698,2]
[335755024,1724478641968,-1188.03,0.00013698,2]
[335755025,1724478641979,-500.0,0.00013698,2]
[335755026,1724478641989,-500.0,0.00013698,2]
[335755027,1724478641998,-500.0,0.00013698,2]
[335755028,1724478642009,-500.0,0.00013698,2]
[335755029,1724478642019,-500.0,0.00013698,2]
[335755031,1724478642032,-500.0,0.00013698,2]
[335755032,1724478642042,-1105.69,0.00013698,2]
[335755033,1724478642053,-2080.43,0.00013698,2]
[335755034,1724478642063,-500.0,0.00013698,2]
[335755035,1724478642073,-500.0,0.00013698,2]
[335755036,1724478642084,-500.0,0.00013698,2]
[335755037,1724478642094,-614.17,0.00013698,2]
[335755038,1724478642105,-500.0,0.00013698,2]
[335755039,1724478642115,-707.9,0.00013698,2]
[335755040,1724478642124,-500.0,0.00013698,2]
[335755041,1724478642133,-500.0,0.00013698,2]
[335755042,1724478642143,-758.12,0.00013698,2]
[335755043,1724478642152,-500.0,0.00013698,2]
[335755044,1724478642161,-500.0,0.00013698,2]
[335755045,1724478642172,-500.0,0.00013698,2]
[335755046,1724478642182,-150.0,0.00013698,2]
[335755047,1724478642191,-3424.19,0.00013698,2]
[335755048,1724478642201,-500.0,0.00013698,2]
[335755049,1724478642211,-500.0,0.00013698,2]
[335755050,1724478642222,-500.0,0.00013698,2]
[335755051,1724478642233,-500.0,0.00013698,2]
[335755052,1724478642242,-500.0,0.00013698,2]
[335755053,1724478642252,-500.0,0.00013698,2]
[335755054,1724478642262,-500.0,0.00013698,2]
[335755055,1724478642272,-500.0,0.00013698,2]